lending/lending_fUSD_20241005
["ID","MTS","AMOUNT","RATE_DAILY","PERIOD"]
[339924736,1728155469998,-500.0,0.0004,30]
[339924737,1728155470008,-500.0,0.0004,30]
[339924738,1728155470018,-500.0,0.0004,30]
[339924739,1728155470028,-500.0,0.0004,30]
[339924740,1728155470037,-500.0,0.0004,30]
[339924741,1728155470047,-500.0,0.0004,30]
[339924742,1728155470056,-500.0,0.0004,30]
[339924743,1728155470065,-500.0,0.0004,30]
[339924744,1728155470077,-500.0,0.0004,30]
[339924745,1728155470086,-206.23696528,0.0004,30]
[339924746,1728155470095,-500.0,0.0004,30]
[339924747,1728155470105,-500.0,0.0004,30]
[339924748,1728155470115,-500.0,0.0004,30]
[339924749,1728155470125,-500.0,0.0004,30]
[339924750,1728155470134,-500.0,0.0004,30]
[339924751,1728155470145,-500.0,0.0004,30]
[339924752,1728155470155,-500.0,0.0004,30]
[339924753,1728155470165,-500.0,0.0004,30]
[339924754,1728155470175,-500.0,0.0004,30]
[339924755,1728155470187,-337.21511075,0.0004,30]
[339924756,1728155470197,-500.0,0.0004,30]
[339924757,1728155470206,-500.0,0.0004,30]
[339924758,1728155470216,-335.53406113,0.0004,30]
[339924759,1728155470226,-500.0,0.0004,30]
[339924760,1728155470235,-550.42,0.0004,30]
[339924761,1728155470245,-500.0,0.0004,30]
[339924762,1728155470255,-500.0,0.0004,30]
[339924763,1728155470265,-500.0,0.0004,30]
[339924764,1728155470275,-500.0,0.0004,30]
[339924765,1728155470285,-500.0,0.0004,30]
[339924766,1728155470294,-500.0,0.0004,30]
[339924767,1728155470304,-317.52,0.0004,30]
[339924768,1728155470314,-500.0,0.0004,30]
[339924769,1728155470324,-500.26,0.0004,30]
[339924770,1728155470334,-500.0,0.0004,30]
[339924771,1728155470344,-500.0,0.0004,30]
[339924772,1728155470354,-500.0,0.0004,30]
[339924773,1728155470364,-500.0,0.0004,30]
[339924774,1728155470374,-500.0,0.0004,30]
[339924775,1728155470383,-500.0,0.0004,30]
[339924776,1728155470394,-500.0,0.0004,30]
[339924777,1728155470403,-500.0,0.0004,30]
[339924778,1728155470414,-576.56,0.0004,30]
[339924779,1728155470424,-500.0,0.0004,30]
[339924780,1728155470434,-500.0,0.0004,30]
[339924781,1728155470444,-500.0,0.0004,30]
[339924782,1728155470454,-500.0,0.0004,30]
[339924783,1728155470463,-1092.06,0.0004,30]
[339924784,1728155470474,-500.0,0.0004,30]
[339924785,1728155470483,-500.0,0.0004,30]
[339924786,1728155470492,-500.0,0.0004,30]
[339924787,1728155470502,-500.0,0.0004,30]
[339924788,1728155470511,-500.0,0.0004,30]
[339924789,1728155470521,-500.0,0.0004,30]
[339924790,1728155470530,-500.0,0.0004,30]
[339924791,1728155470540,-500.0,0.0004,30]
[339924792,1728155470550,-552.57,0.0004,30]
[339924793,1728155470559,-500.0,0.0004,30]
[339924794,1728155470569,-500.0,0.0004,30]
[339924795,1728155470580,-500.0,0.0004,30]
[339924796,1728155470595,-500.0,0.0004,30]
[339924797,1728155470604,-520.29,0.0004,30]
[339924798,1728155470614,-500.0,0.0004,30]
[339924799,1728155470624,-500.0,0.0004,30]
[339924800,1728155470633,-500.0,0.0004,30]
[339924801,1728155470643,-500.0,0.0004,30]
[339924802,1728155470652,-500.0,0.0004,30]
[339924803,1728155470662,-500.0,0.0004,30]
[339924804,1728155470672,-500.0,0.0004,30]
[339924805,1728155470681,-500.0,0.0004,30]
[339924806,1728155470690,-584.08,0.0004,30]
[339924807,1728155470700,-500.0,0.0004,30]
[339924808,1728155470710,-500.0,0.0004,30]
[339924809,1728155470720,-500.0,0.0004,30]
[339924810,1728155470729,-500.0,0.0004,30]
[339924811,1728155470739,-951.49,0.0004,30]
[339924812,1728155470749,-553.21,0.0004,30]
[339924813,1728155470759,-500.0,0.0004,30]
[339924814,1728155470768,-500.0,0.0004,30]
[339924815,1728155470778,-500.0,0.0004,30]
[339924816,1728155470788,-500.0,0.0004,30]
[339924817,1728155470797,-500.0,0.0004,30]
[339924818,1728155470808,-500.0,0.0004,30]
[339924819,1728155470817,-500.0,0.0004,30]
[339924820,1728155470829,-500.0,0.0004,30]
[339924821,1728155470840,-500.0,0.0004,30]
[339924822,1728155470850,-500.0,0.0004,30]
[339924823,1728155470861,-500.0,0.0004,30]
[339924824,1728155470871,-500.0,0.0004,30]
[339924825,1728155470882,-345.96,0.0004,30]
[339924826,1728155470892,-500.0,0.0004,30]
[339924827,1728155470903,-500.0,0.0004,30]
[339924828,1728155470914,-500.0,0.0004,30]
[339924829,1728155470925,-500.0,0.0004,30]
[339924830,1728155470936,-337.20345761,0.0004,30]
[339924831,1728155470946,-500.0,0.0004,30]
[339924832,1728155470956,-500.0,0.0004,30]
[339924833,1728155470966,-465.45566318,0.0004,30]
[339924834,1728155470976,-455.98619182,0.0004,30]
[339924835,1728155470985,-319.85,0.0004,30]
[339924836,1728155470994,-500.0,0.0004,30]
[339924837,1728155471003,-500.0,0.0004,30]
[339924838,1728155471013,-562.32,0.0004,30]
[339924839,1728155471022,-163.35,0.0004,30]
[339924840,1728155471032,-500.0,0.0004,30]
[339924841,1728155471041,-1337.65,0.0004,30]
[339924842,1728155471050,-500.0,0.0004,30]
[339924843,1728155471059,-500.0,0.0004,30]
[339924844,1728155471068,-500.0,0.0004,30]
[339924845,1728155471079,-500.0,0.0004,30]
[339924846,1728155471088,-500.0,0.0004,30]
[339924847,1728155471098,-500.0,0.0004,30]
[339924848,1728155471107,-500.0,0.0004,30]
[339924849,1728155471116,-574.83,0.0004,30]
[339924850,1728155471126,-500.0,0.0004,30]
[339924851,1728155471136,-500.0,0.0004,30]
[339924852,1728155471146,-500.0,0.0004,30]
[339924853,1728155471155,-500.0,0.0004,30]
[339924854,1728155471165,-500.0,0.0004,30]
[339924855,1728155471174,-500.0,0.0004,30]
[339924856,1728155471184,-500.0,0.0004,30]
[339924857,1728155471198,-500.0,0.0004,30]
[339924858,1728155471207,-500.0,0.0004,30]
[339924859,1728155471217,-500.0,0.0004,30]
[339924860,1728155471226,-500.0,0.0004,30]
[339924861,1728155471236,-500.0,0.0004,30]
[339924862,1728155471246,-500.0,0.0004,30]
[339924863,1728155471255,-543.59,0.0004,30]
[339924864,1728155471264,-460.79,0.0004,14]
[339924865,1728155471274,-500.0,0.0004,30]
[339924866,1728155471285,-568.31263031,0.0004,30]
[339924867,1728155471295,-500.0,0.0004,30]
[339924868,1728155471304,-500.0,0.0004,30]
[339924869,1728155471314,-500.0,0.0004,30]
[339924870,1728155471323,-637.93,0.0004,30]
[339924871,1728155471334,-277.12,0.0004,30]
[339924872,1728155471343,-948.74,0.0004,30]
[339924873,1728155471353,-500.0,0.0004,30]
[339924874,1728155471362,-227.29,0.0004,30]
[339924875,1728155471371,-500.0,0.0004,24]
[339924876,1728155471381,-676.39,0.0004,30]
[339924877,1728155471391,-500.0,0.0004,30]
[339924878,1728155471400,-500.0,0.0004,30]
[339924879,1728155471409,-559.64033856,0.0004,30]
[339924880,1728155471419,-500.0,0.0004,30]
[339924881,1728155471429,-501.08,0.0004,30]
[339924882,1728155471439,-500.0,0.0004,30]
[339924883,1728155471448,-500.0,0.0004,30]
[339924884,1728155471458,-500.0,0.0004,30]
[339924885,1728155471468,-500.0,0.0004,30]
[339924886,1728155471477,-500.0,0.0004,30]
[339924887,1728155471487,-500.0,0.0004,30]
[339924888,1728155471496,-500.0,0.0004,30]
[339924889,1728155471506,-500.0,0.0004,30]
[339924890,1728155471515,-608.74874893,0.0004,30]
[339924891,1728155471524,-500.0,0.0004,30]
[339924892,1728155471534,-500.0,0.0004,30]
[339924893,1728155471544,-500.0,0.0004,30]
[339924894,1728155471553,-500.0,0.0004,30]
[339924895,1728155471562,-500.0,0.0004,30]
[339924896,1728155471572,-500.0,0.0004,30]
[339924897,1728155471582,-500.0,0.0004,30]
[339924898,1728155471591,-500.0,0.0004,30]
[339924899,1728155471601,-500.0,0.0004,30]
[339924900,1728155471610,-500.0,0.0004,30]
[339924901,1728155471619,-500.0,0.0004,30]
[339924902,1728155471629,-500.0,0.0004,30]
[339924903,1728155471638,-500.0,0.0004,30]
[339924904,1728155471647,-8.74449713,0.0004,30]
[339924905,1728155471784,-292.036,0.00038356,30]
[339924906,1728155471796,-207.964,0.00038356,30]
[339924907,1728155471805,-504.63302037,0.0004,30]
[339924908,1728155471815,-365.60959515,0.0004,30]
[339924909,1728155471825,-500.0,0.0004,30]
[339924910,1728155471836,-500.0,0.0004,30]
[339924911,1728155471845,-209.70062317,0.0004,30]
[339924912,1728155471857,-290.29937683,0.0004,30]
[339924913,1728155471868,-500.0,0.0004,30]
[339924914,1728155471923,-500.0,0.0004,30]
[339924915,1728155471932,-500.0,0.0004,30]
[339924916,1728155471942,-562.93150661,0.0004,30]
[339924917,1728155471951,-500.0,0.0004,30]
[339924918,1728155471960,-409.36121294,0.0004,30]
[339924919,1728155471970,-500.0,0.0004,30]
[339924920,1728155471979,-500.0,0.0004,30]
[339924921,1728155471988,-500.0,0.0004,30]
[339924922,1728155471997,-500.0,0.0004,30]
[339924923,1728155472007,-500.0,0.0004,30]
[339924924,1728155472016,-31.73951637,0.0004,30]
[339924925,1728155472027,-483.74811611,0.0004,30]
[339924926,1728155472036,-642.0289552,0.0004,30]
[339924927,1728155472047,-500.0,0.0004,30]
[339924928,1728155472056,-104.54717991,0.0004,30]
[339924929,1728155472067,-734.56282009,0.0004,30]
[339924930,1728155472076,-500.0,0.0004,30]
[339924931,1728155472086,-500.0,0.0004,30]
[339924932,1728155472095,-500.0,0.0004,30]
[339924933,1728155472104,-500.0,0.0004,30]
[339924934,1728155472113,-571.35,0.0004,30]
[339924935,1728155472122,-500.0,0.0004,30]
[339924936,1728155472131,-500.0,0.0004,30]
[339924937,1728155472142,-218.37,0.0004,30]
[339924938,1728155472151,-531.95202049,0.0004,30]
[339924939,1728155472160,-308.83034261,0.0004,30]
[339924940,1728155472169,-253.51126095,0.0004,30]
[339924941,1728155472178,-313.09811585,0.0004,30]
[339924942,1728155472190,-186.90188415,0.0004,30]
[339924943,1728155472205,-500.0,0.0004,30]
[339924944,1728155472216,-500.0,0.0004,30]
[339924945,1728155472225,-500.0,0.0004,30]
[339924946,1728155472234,-500.0,0.0004,30]
[339924947,1728155472243,-500.0,0.0004,30]
[339924948,1728155472252,-275.04811585,0.0004,30]
[339924949,1728155472266,-224.95188415,0.0004,30]
[339924950,1728155472275,-500.0,0.0004,30]
[339924951,1728155472285,-500.0,0.0004,30]
[339924952,1728155472294,-500.0,0.0004,30]
[339924953,1728155472303,-607.11043164,0.0004,30]
[339924954,1728155472313,-500.0,0.0004,30]
[339924955,1728155472322,-500.0,0.0004,30]
[339924956,1728155472331,-500.0,0.0004,30]
[339924957,1728155472339,-500.0,0.0004,30]
[339924958,1728155472349,-500.0,0.0004,30]
[339924959,1728155472358,-549.5,0.0004,30]
[339924960,1728155472367,-500.0,0.0004,30]
[339924961,1728155472376,-500.0,0.0004,30]
[339924962,1728155472385,-500.0,0.0004,30]
[339924963,1728155472394,-500.0,0.0004,30]
[339924964,1728155472403,-500.0,0.0004,30]
[339924965,1728155472412,-500.0,0.0004,30]
[339924966,1728155472421,-606.81,0.0004,30]
[339924967,1728155472431,-500.0,0.0004,30]
[339924968,1728155472440,-500.0,0.0004,30]
[339924969,1728155472449,-500.0,0.0004,30]
[339924970,1728155472458,-341.38,0.0004,30]
[339924971,1728155472468,-500.0,0.0004,30]
[339924972,1728155472477,-500.0,0.0004,7]
[339924973,1728155472486,-500.0,0.0004,30]
[339924974,1728155472495,-500.0,0.0004,30]
[339924975,1728155472507,-500.0,0.0004,30]
[339924976,1728155472517,-500.0,0.0004,30]
[339924977,1728155472527,-683.0,0.0004,30]
[339924978,1728155472536,-500.0,0.0004,30]
[339924979,1728155472546,-500.0,0.0004,30]
[339924980,1728155472555,-94.75292672,0.0004,30]
[339924981,1728155473391,-718.0,0.00011,2]
[339924982,1728155473401,-150.0,0.000116,2]
[339924983,1728155473411,-150.0,0.00011617,2]
[339924984,1728155473420,-150.0,0.00011622,2]
[339924985,1728155473430,-93.11299014,0.00011625,2]
[339924986,1728155473441,-56.88700986,0.00011625,2]
[339924987,1728155473451,-150.0,0.00011629,2]
[339924988,1728155473460,-150.0,0.00011634,2]
[339924989,1728155473469,-150.0,0.00011634,2]
[339924990,1728155473479,-150.0,0.00011635,2]
[339924991,1728155473488,-150.0,0.00011636,2]
[339924992,1728155473498,-150.0,0.00011643,2]
[339924993,1728155473508,-150.0,0.00011643,2]
[339924994,1728155473517,-31.39502663,0.00011645,2]
[339924995,1728155473529,-118.60497337,0.00011645,2]
[339924996,1728155473538,-150.0,0.00011656,2]
[339924997,1728155473548,-150.0,0.00011671,2]
[339924998,1728155473557,-150.0,0.00011672,2]
[339924999,1728155473567,-150.0,0.00011673,2]
[339925000,1728155473576,-150.0,0.0001168,2]
[339925001,1728155473587,-150.0,0.00011684,2]
[339925002,1728155473596,-150.0,0.00011685,2]
[339925003,1728155473605,-150.0,0.00011686,2]
[339925004,1728155473615,-150.0,0.00011696,2]
[339925005,1728155473624,-150.0,0.00011697,2]
[339925006,1728155473634,-150.0,0.00011697,2]
[339925007,1728155473644,-150.0,0.00011699,2]
[339925008,1728155473654,-150.0,0.00011701,2]
[339925009,1728155473663,-150.0,0.00011707,2]
[339925010,1728155473673,-150.0,0.00011707,2]
[339925011,1728155473683,-150.0,0.0001171,2]
[339925012,1728155473693,-150.0,0.00011711,2]
[339925013,1728155473703,-150.0,0.00011712,2]
[339925014,1728155473713,-150.0,0.00011714,2]
[339925015,1728155473723,-150.0,0.00011716,2]
[339925016,1728155473733,-150.0,0.0001172,2]
[339925017,1728155473742,-150.0,0.00011721,2]
[339925018,1728155473752,-150.0,0.00011723,2]
[339925019,1728155473762,-150.0,0.00011724,2]
[339925020,1728155473771,-150.0,0.00011725,2]
[339925021,1728155473781,-150.0,0.00011728,2]
[339925022,1728155473790,-150.0,0.00011734,2]
[339925023,1728155473800,-150.0,0.00011735,2]
[339925024,1728155473810,-150.0,0.00011737,2]
[339925025,1728155473819,-150.0,0.00011738,2]
[339925026,1728155473829,-150.0,0.00011746,2]
[339925027,1728155473845,-150.0,0.00011748,2]
[339925028,1728155473855,-150.0,0.0001175,2]
[339925029,1728155473864,-150.0,0.00011754,2]
[339925030,1728155473874,-150.0,0.00011759,2]
[339925031,1728155473884,-150.0,0.00011763,2]
[339925032,1728155473893,-150.0,0.00011768,2]
[339925033,1728155473903,-150.0,0.00011771,2]
[339925034,1728155473912,-150.0,0.00011772,2]
[339925035,1728155473922,-150.0,0.0001178,2]
[339925036,1728155473931,-150.0,0.00011781,2]
[339925037,1728155473941,-150.0,0.00011783,2]
[339925038,1728155473951,-150.0,0.00011785,2]
[339925039,1728155473960,-150.0,0.00011787,2]
[339925040,1728155473970,-150.0,0.00011792,2]
[339925041,1728155473980,-150.0,0.00011804,2]
[339925042,1728155473990,-150.0,0.00011805,2]
[339925043,1728155473999,-150.0,0.00011805,2]
[339925044,1728155474009,-150.0,0.00011809,2]
[339925045,1728155474019,-150.0,0.00011813,2]
[339925046,1728155474028,-150.0,0.00011814,2]
[339925047,1728155474039,-150.0,0.00011819,2]
[339925048,1728155474049,-150.0,0.00011819,2]
[339925049,1728155474058,-150.0,0.0001182,2]
[339925050,1728155474068,-150.0,0.0001182,2]
[339925051,1728155474078,-150.0,0.00011824,2]
[339925052,1728155474094,-150.0,0.00011825,2]
[339925053,1728155474104,-150.0,0.00011825,2]
[339925054,1728155474114,-150.0,0.00011826,2]
[339925055,1728155474123,-150.0,0.00011827,2]
[339925056,1728155474132,-150.0,0.00011827,2]
[339925057,1728155474142,-150.0,0.00011829,2]
[339925058,1728155474151,-150.0,0.00011834,2]
[339925059,1728155474161,-150.0,0.00011839,2]
[339925060,1728155474170,-150.0,0.00011841,2]
[339925061,1728155474180,-150.0,0.00011843,2]
[339925062,1728155474190,-150.0,0.00011844,2]
[339925063,1728155474203,-150.0,0.00011845,2]
[339925064,1728155474212,-150.0,0.00011849,2]
[339925065,1728155474222,-150.0,0.00011857,2]
[339925066,1728155474232,-150.0,0.0001186,2]
[339925067,1728155474242,-150.0,0.00011868,2]
[339925068,1728155474253,-150.0,0.00011868,2]
[339925069,1728155474262,-150.0,0.00011869,2]
[339925070,1728155474273,-150.0,0.00011895,2]
[339925071,1728155474283,-150.0,0.00011901,2]
[339925072,1728155474293,-150.0,0.00011919,2]
[339925073,1728155474303,-150.0,0.00011933,2]
[339925074,1728155474312,-150.0,0.00011939,2]
[339925075,1728155474322,-150.0,0.00011984,2]
[339925076,1728155474334,-150.0,0.00012037,2]
[339925077,1728155474344,-150.0,0.0001205,2]
[339925078,1728155474354,-150.0,0.00012675,2]
[339925079,1728155474364,-150.0,0.00012682,2]
[339925080,1728155474374,-150.0,0.00013481,2]
[339925081,1728155474384,-150.0,0.00013582,2]
[339925082,1728155474394,-150.0,0.00013609,2]
[339925083,1728155474404,-216.71725011,0.00014254,2]
[339925084,1728155474414,-2295.01872119,0.00018011,2]
[339925085,1728155474424,-500.0,0.00019,2]
[339925086,1728155474434,-500.0,0.0002,2]
[339925087,1728155474445,-754.57,0.00037597,2]
[339925088,1728155474455,-423.4,0.00037597,2]
[339925089,1728155474465,-428.85,0.00037734,2]
[339925090,1728155474476,-358.58,0.00037734,2]
[339925091,1728155474486,-500.0,0.00038767,30]
[339925092,1728155474496,-500.0,0.00039178,30]
[339925093,1728155474505,-500.06364704,0.00039589,30]
[339925094,1728155474515,-405.24707328,0.0004,30]
[339925095,1728155474526,-500.0,0.0004,30]
[339925096,1728155474536,-500.0,0.0004,30]
[339925097,1728155474546,-500.0,0.0004,30]
[339925098,1728155474556,-500.0,0.0004,30]
[339925099,1728155474567,-500.0,0.0004,30]
[339925100,1728155474577,-2800.0,0.00040068,60]
[339925101,1728155474591,-4000.0,0.00040068,60]
[339925102,1728155474602,-373.08,0.00040297,2]
[339925103,1728155474612,-151.0,0.0004041,14]
[339925104,1728155474621,-6507.80399326,0.0004041,5]
[339925105,1728155474631,-151.0,0.0004041,14]
[339925106,1728155474641,-168.90356,0.0004041,14]
[339925107,1728155474650,-168.90356,0.0004041,14]
[339925108,1728155474660,-151.0,0.0004041,14]
[339925109,1728155474670,-500.0,0.0004041,30]
[339925110,1728155474680,-500.0,0.0004041,30]
[339925111,1728155474690,-500.0,0.0004041,30]
[339925112,1728155474700,-500.0,0.0004041,30]
[339925113,1728155474710,-500.0,0.0004041,30]
[339925114,1728155474720,-500.0,0.0004041,30]
[339925115,1728155474730,-500.0,0.0004041,30]
[339925116,1728155474740,-515.88,0.0004041,30]
[339925117,1728155474750,-500.0,0.0004041,30]
[339925118,1728155474760,-500.0,0.0004041,30]
[339925119,1728155474770,-500.0,0.0004041,30]
[339925120,1728155474780,-500.0,0.0004041,30]
[339925121,1728155474789,-500.0,0.0004041,30]
[339925122,1728155474799,-354.21387813,0.0004041,30]
[339925123,1728155474809,-500.0,0.0004041,30]
[339925124,1728155474819,-500.0,0.0004041,30]
[339925125,1728155474829,-500.0,0.0004041,30]
[339925126,1728155474842,-500.0,0.0004041,30]
[339925127,1728155474852,-500.0,0.0004041,30]
[339925128,1728155474862,-696.6,0.0004041,30]
[339925129,1728155474871,-500.0,0.0004041,30]
[339925130,1728155474881,-500.0,0.0004041,30]
[339925131,1728155474891,-500.0,0.0004041,30]
[339925132,1728155474901,-500.0,0.0004041,30]
[339925133,1728155474910,-500.0,0.0004041,30]
[339925134,1728155474920,-500.0,0.0004041,30]
[339925135,1728155474930,-500.0,0.0004041,30]
[339925136,1728155474939,-500.0,0.0004041,30]
[339925137,1728155474949,-500.0,0.0004041,30]
[339925138,1728155474959,-151.0,0.0004041,14]
[339925139,1728155474969,-500.0,0.0004041,30]
[339925140,1728155474980,-151.0,0.0004041,14]
[339925141,1728155474989,-500.0,0.0004041,30]
[339925142,1728155474999,-500.0,0.0004041,30]
[339925143,1728155475009,-500.0,0.0004041,30]
[339925144,1728155475019,-500.0,0.0004041,30]
[339925145,1728155475029,-500.0,0.0004041,30]
[339925146,1728155475039,-500.0,0.0004041,30]
[339925147,1728155475048,-500.0,0.0004041,30]
[339925148,1728155475057,-500.0,0.0004041,30]
[339925149,1728155475067,-500.0,0.0004041,30]
[339925150,1728155475077,-500.0,0.0004041,30]
[339925151,1728155475088,-500.0,0.0004041,30]
[339925152,1728155475098,-500.0,0.0004041,30]
[339925153,1728155475108,-500.0,0.0004041,30]
[339925154,1728155475118,-500.0,0.0004041,30]
[339925155,1728155475128,-500.0,0.0004041,30]
[339925156,1728155475138,-500.0,0.0004041,30]
[339925157,1728155475148,-500.0,0.0004041,30]
[339925158,1728155475158,-500.0,0.0004041,30]
[339925159,1728155475169,-500.0,0.0004041,30]
[339925160,1728155475179,-500.0,0.0004041,30]
[339925161,1728155475189,-500.0,0.0004041,30]
[339925162,1728155475203,-500.0,0.0004041,30]
[339925163,1728155475364,-521.03,0.0004041,30]
[339925164,1728155475374,-500.0,0.0004041,30]
[339925165,1728155475384,-500.0,0.0004041,30]
[339925166,1728155475393,-362.88615774,0.0004041,30]
[339925167,1728155475403,-600.97561893,0.0004041,30]
[339925168,1728155475413,-500.0,0.0004041,30]
[339925169,1728155475422,-500.0,0.0004041,30]
[339925170,1728155475431,-500.0,0.0004041,30]
[339925171,1728155475441,-500.0,0.0004041,30]
[339925172,1728155475450,-500.0,0.0004041,30]
[339925173,1728155475459,-500.0,0.0004041,30]
[339925174,1728155475469,-500.0,0.0004041,30]
[339925175,1728155475478,-500.0,0.0004041,30]
[339925176,1728155475488,-500.0,0.0004041,30]
[339925177,1728155475498,-500.0,0.0004041,30]
[339925178,1728155475509,-454.84086397,0.0004041,30]
[339925179,1728155475518,-500.0,0.0004041,30]
[339925180,1728155475528,-500.0,0.0004041,30]
[339925181,1728155475537,-500.0,0.0004041,30]
[339925182,1728155475546,-500.0,0.0004041,30]
[339925183,1728155475555,-500.0,0.0004041,30]
[339925184,1728155475566,-500.0,0.0004041,30]
[339925185,1728155475576,-500.0,0.0004041,30]
[339925186,1728155475585,-500.0,0.0004041,30]
[339925187,1728155475594,-631.77,0.0004041,30]
[339925188,1728155475604,-500.0,0.0004041,30]
[339925189,1728155475614,-500.0,0.0004041,30]
[339925190,1728155475624,-500.0,0.0004041,30]
[339925191,1728155475634,-500.0,0.0004041,30]
[339925192,1728155475643,-500.0,0.0004041,30]
[339925193,1728155475656,-500.0,0.0004041,30]
[339925194,1728155475665,-500.0,0.0004041,30]
[339925195,1728155475674,-500.0,0.0004041,30]
[339925196,1728155475683,-500.0,0.0004041,30]
[339925197,1728155475693,-500.0,0.0004041,30]
[339925198,1728155475703,-389.14263314,0.0004041,30]
[339925199,1728155475713,-500.0,0.0004041,30]
[339925200,1728155475723,-500.0,0.0004041,30]
[339925201,1728155475732,-500.0,0.0004041,30]
[339925202,1728155475743,-500.0,0.0004041,30]
[339925203,1728155475752,-500.0,0.0004041,30]
[339925204,1728155475762,-500.0,0.0004041,30]
[339925205,1728155475772,-500.0,0.0004041,30]
[339925206,1728155475782,-500.0,0.0004041,30]
[339925207,1728155475792,-500.0,0.0004041,30]
[339925208,1728155475801,-500.0,0.0004041,30]
[339925209,1728155475811,-500.0,0.0004041,30]
[339925210,1728155475820,-452.493256,0.0004041,14]
[339925211,1728155475829,-500.0,0.0004041,30]
[339925212,1728155475840,-191.094604,0.0004041,14]
[339925213,1728155475849,-452.493256,0.0004041,14]
[339925214,1728155475859,-550.42,0.0004041,30]
[339925215,1728155475869,-500.0,0.0004041,30]
[339925216,1728155475878,-191.094604,0.0004041,14]
[339925217,1728155475888,-500.0,0.0004041,30]
[339925218,1728155475898,-500.0,0.0004041,30]
[339925219,1728155475908,-500.0,0.0004041,30]
[339925220,1728155475917,-448.0063704,0.0004041,30]
[339925221,1728155475926,-500.0,0.0004041,30]
[339925222,1728155475936,-317.52,0.0004041,30]
[339925223,1728155475945,-500.0,0.0004041,30]
[339925224,1728155475955,-500.0,0.0004041,30]
[339925225,1728155475964,-500.0,0.0004041,30]
[339925226,1728155475974,-500.0,0.0004041,30]
[339925227,1728155475983,-500.0,0.0004041,30]
[339925228,1728155475992,-500.0,0.0004041,30]
[339925229,1728155476001,-500.0,0.0004041,30]
[339925230,1728155476011,-500.0,0.0004041,30]
[339925231,1728155476020,-500.0,0.0004041,30]
[339925232,1728155476030,-576.56,0.0004041,30]
[339925233,1728155476039,-268.00942695,0.0004041,30]
[339925234,1728155476055,-275.41222929,0.0004041,30]
[339925235,1728155476065,-500.0,0.0004041,30]